bitfinex/quotes_ETHUSD_20240824
["timestamp","ask_amount","ask_price","bid_price","bid_amount"]
[1724511883871,0.55,2763.9,2763.5,7.45]
[1724511884186,2.3283,2763.8,2763.5,3.61858]
[1724511884777,2.3283,2763.8,2763.6,3.61843]
[1724511885872,2.3283,2763.8,2763.6,3.61839]
[1724511886072,2.3283,2763.8,2763.6,3.61838]
[1724511886531,2.3283,2763.8,2763.7,3.61833]
[1724511893687,2.2508,2764.2,2763.8,3.6182]
[1724511893997,0.55,2764.1,2763.8,3.6182]
[1724511897447,2.2508,2764.2,2764.0,3.6179]
[1724511899198,2.2508,2764.2,2763.8,7.23629]
[1724511899696,2.2508,2764.2,2763.8,3.61809]
[1724511899893,2.2508,2764.0,2763.6,3.61838]
[1724511900656,2.2508,2764.0,2762.8,11.06944]
[1724511900657,2.2508,2763.8,2762.8,9.767]
[1724511900833,1.26900983,2763.5,2763.1,3.61909]
[1724511901137,2.2508,2763.4,2762.9,3.61927]
[1724511901363,2.8008,2763.4,2762.9,3.61927]
[1724511901667,2.8008,2763.4,2762.9,7.23857]
[1724511902763,3.56964198,2763.4,2762.9,3.61927]
[1724511902919,3.56964198,2763.4,2762.9,7.23856]
[1724511903525,3.56964198,2763.4,2763.0,3.61922]
[1724511903733,2.8008,2763.4,2763.0,3.61922]
[1724511905255,2.63919024,2763.4,2763.0,3.61922]
[1724511906449,2.63919024,2763.4,2762.9,7.23857]
[1724511906652,2.63919024,2763.4,2762.9,3.61927]
[1724511907060,2.63919024,2763.4,2762.9,7.23856]
[1724511907573,2.63919024,2763.4,2763.0,3.61923]
[1724511909513,2.63919024,2763.4,2762.9,7.23856]
[1724511911700,2.63919024,2763.4,2762.9,3.61927]
[1724511912359,2.63919024,2763.4,2762.9,7.23858]
[1724511913119,2.63919024,2763.4,2762.9,3.61927]
[1724511913627,2.4617,2763.0,2762.5,3.6198]
[1724511913782,1.30268101,2763.4,2762.4,3.62003]
[1724511913783,2.4617,2762.8,2762.4,3.62003]
[1724511915490,2.4617,2762.8,2762.5,3.6199]
[1724511917610,2.4617,2762.8,2762.6,3.61976]
[1724511917827,2.4617,2762.8,2762.6,4.10863698]
[1724511919118,2.4617,2762.8,2762.6,3.61976]
[1724511920575,2.4617,2762.8,2762.4,3.62]
[1724511920576,2.4617,2762.8,2762.5,3.61988]
[1724511923398,2.4617,2762.8,2762.6,3.61977]
[1724511925291,2.4617,2762.8,2762.7,3.61964]
[1724511925492,2.3393,2763.2,2762.8,3.61943]
[1724511925807,3.87295188,2763.4,2763.1,3.61912]
[1724511925808,6.21225188,2763.4,2763.1,3.61912]
[1724511926006,6.21225188,2763.4,2762.9,7.23861]
[1724511926007,2.3393,2763.4,2762.9,7.23861]
[1724511926154,2.3393,2763.4,2762.9,3.6193]
[1724511926353,2.3393,2763.4,2762.9,7.23859]
[1724511927253,0.55,2763.3,2762.9,8.31863998]
[1724511927649,0.55,2763.3,2762.9,4.69933998]
[1724511929879,2.3393,2763.4,2763.1,3.61911]
[1724511931734,3.87295188,2763.8,2763.4,3.6186]
[1724511932037,3.87295188,2763.8,2763.5,0.723744]
[1724511932038,0.09243342,2763.7,2763.5,0.723744]
[1724511932326,0.09243342,2763.7,2763.4,3.6186]
[1724511932535,6.03308,2763.9,2763.3,7.23761]
[1724511932831,6.03308,2763.9,2763.3,3.61877]
[1724511933003,0.09315174,2763.8,2763.3,3.61877]
[1724511933334,0.09315174,2763.8,2763.4,0.604557]
[1724511934131,3.61834,2763.7,2763.1,3.61902]
[1724511934333,2.415,2763.5,2763.0,3.61924]
[1724511934694,0.09311371,2763.4,2763.0,3.61924]
[1724511934931,0.09311371,2763.4,2762.9,1.08004998]
[1724511935138,2.415,2763.3,2762.8,3.0]
[1724511935554,0.09308007,2763.2,2762.8,6.61944]
[1724511935946,2.415,2763.3,2762.8,6.61944]
[1724511936125,0.09305351,2763.1,2762.8,6.61944]
[1724511936456,0.09302695,2763.0,2762.9,3.61938]
[1724511936656,0.09302695,2763.0,2762.9,4.643274]
[1724511936826,2.415,2763.3,2762.9,4.643274]
[1724511937005,0.09298798,2763.0,2762.9,4.643274]
[1724511937205,2.415,2763.3,2762.9,4.643274]
[1724511937448,0.09304111,2763.2,2762.9,4.643274]
[1724511937828,2.415,2763.3,2762.9,8.262574]
[1724511938041,0.09301455,2763.1,2762.9,4.643194]
[1724511938352,2.415,2763.3,2762.9,4.643194]
[1724511938567,0.09298798,2763.0,2762.9,3.6193]
[1724511938748,2.415,2763.3,2762.9,3.6193]
[1724511938913,0.09298798,2763.0,2762.9,3.6193]
[1724511939113,2.415,2763.3,2762.9,3.6193]
[1724511939335,0.09298798,2763.0,2762.9,3.6193]
[1724511939537,2.415,2763.3,2762.9,3.6193]
[1724511940064,0.09294371,2763.2,2762.9,3.6193]
[1724511940533,2.415,2763.3,2762.9,3.6193]
[1724511940750,0.09291715,2763.1,2762.9,3.6193]
[1724511940954,2.415,2763.3,2762.9,3.6193]
[1724511941154,0.09289058,2763.0,2762.9,3.6193]
[1724511941367,2.415,2763.3,2763.0,3.61924]
[1724511943147,0.09292424,2763.2,2763.0,3.61924]
[1724511943517,2.415,2763.3,2763.0,3.61924]
[1724511943747,0.09289768,2763.1,2763.0,3.61924]
[1724511944236,2.415,2763.3,2763.0,3.61924]
[1724511944436,0.09289768,2763.1,2763.0,3.61924]
[1724511944642,2.415,2763.3,2763.0,3.61924]
[1724511944975,0.09289768,2763.1,2763.0,3.61924]
[1724511945123,2.415,2763.3,2763.0,3.61924]
[1724511945322,0.09289768,2763.1,2763.0,3.61924]
[1724511945524,2.415,2763.3,2763.0,3.61924]
[1724511945769,0.09289768,2763.1,2763.0,3.61924]
[1724511945968,2.415,2763.3,2763.0,3.61924]
[1724511946171,0.09289768,2763.1,2763.0,3.61924]
[1724511946670,2.415,2763.3,2763.0,3.61924]
[1724511946875,0.09289768,2763.1,2763.0,3.61924]
[1724511947042,2.415,2763.3,2763.0,3.61924]
[1724511947229,0.09289768,2763.1,2763.0,3.61924]
[1724511947430,2.415,2763.3,2763.0,3.61924]
[1724511947662,0.09292424,2763.2,2763.0,3.61924]
[1724511948171,2.415,2763.3,2763.0,3.61924]
[1724511948337,0.09289768,2763.1,2763.0,3.61924]
[1724511948540,2.415,2763.3,2763.0,3.61924]
[1724511948781,0.09289768,2763.1,2763.0,3.61924]
[1724511948942,2.415,2763.3,2763.0,3.61924]
[1724511949444,0.09292424,2763.2,2763.0,3.61924]
[1724511949829,2.415,2763.3,2763.0,3.61924]
[1724511950129,0.09292424,2763.2,2763.0,3.61924]
[1724511950475,2.415,2763.3,2763.0,3.61924]
[1724511950788,0.09289768,2763.1,2763.0,3.61924]
[1724511950926,2.415,2763.3,2763.0,3.61924]
[1724511951125,0.09289768,2763.1,2763.0,3.61924]
[1724511951366,2.415,2763.3,2763.0,3.61924]
[1724511951580,0.09281488,2763.1,2763.0,3.61924]
[1724511951741,2.415,2763.3,2763.0,3.61924]
[1724511951942,0.09281488,2763.1,2763.0,3.61924]
[1724511952130,2.415,2763.3,2763.0,3.61924]
[1724511952329,0.09281488,2763.1,2763.0,3.61924]
[1724511952557,7.81169983,2763.6,2763.0,7.962284]
[1724511952763,0.09280511,2763.1,2763.0,3.61917]
[1724511953028,2.3742,2763.6,2762.9,2.4073]
[1724511953225,2.3742,2763.6,2763.3,3.61884]
[1724511953678,5.14196171,2763.8,2763.3,3.61884]
[1724511953842,7.51616171,2763.8,2763.3,3.61884]
[1724511954169,0.09296932,2763.7,2763.4,3.61871]
[1724511954338,0.09296932,2763.7,2763.2,7.23773]
[1724511954536,11.13437171,2763.8,2763.3,3.61885]
[1724511954742,0.09294277,2763.6,2763.3,3.61885]
[1724511954943,0.09298394,2763.7,2763.3,3.61885]
[1724511955163,0.09293083,2763.5,2763.3,3.61885]
[1724511955341,7.26141983,2763.8,2763.2,3.61886]
[1724511955557,0.09290427,2763.4,2763.2,3.61886]
[1724511955875,7.26141983,2763.8,2763.2,4.342663]
[1724511955876,0.09287771,2763.3,2763.2,4.342663]
[1724511956284,7.26141983,2763.8,2763.2,4.342663]
[1724511956426,0.09287771,2763.3,2763.2,3.61886]
[1724511956766,3.61834,2763.7,2763.2,3.61886]
[1724511956940,0.0928972,2763.3,2763.2,3.61886]
[1724511957141,3.61834,2763.7,2763.2,3.61886]
[1724511957350,0.0928972,2763.3,2763.2,3.61886]
[1724511957552,3.61834,2763.7,2763.2,4.342663]
[1724511957882,3.61834,2763.7,2763.2,3.61886]
[1724511958169,0.09297687,2763.6,2763.2,3.61886]
[1724511958865,0.09297687,2763.6,2763.0,3.61917]
[1724511958866,2.3742,2763.4,2763.0,3.61917]
[1724511959169,2.3742,2763.4,2762.8,12.33840983]
[1724511959376,0.0928972,2763.3,2762.8,12.33840983]
[1724511959584,0.0928972,2763.3,2762.9,1.83652698]
[1724511959891,3.7117772,2763.3,2762.8,7.45]
[1724511960877,3.7117772,2763.3,2762.7,3.61956]
[1724511961078,3.7117772,2763.3,2762.7,7.23911]
[1724511961386,3.7117772,2763.3,2762.7,3.61955]
[1724511961549,3.7117772,2763.3,2762.8,0.52505478]
[1724511961972,3.7117772,2763.3,2762.8,4.14455478]
[1724511964198,0.0928972,2763.3,2762.8,4.14455478]
[1724511964773,0.0928972,2763.3,2762.9,3.61936]
[1724511965300,0.0928972,2763.3,2762.8,1.79406461]
[1724511965506,0.0928972,2763.3,2763.2,7.23798]
[1724511965864,2.3742,2763.7,2763.3,3.61875]
[1724511969002,0.08972475,2763.6,2763.3,3.61875]
[1724511970864,0.08972475,2763.6,2763.2,3.61899]
[1724511971064,0.08972475,2763.6,2763.2,8.08861098]
[1724511971266,0.08972475,2763.6,2763.3,3.61883]
[1724511985471,0.08972475,2763.6,2763.5,3.61859]
[1724511985673,0.08972475,2763.6,2763.5,7.23718]
[1724511985868,3.69590983,2763.9,2763.3,3.6188]
[1724511986074,2.4965,2763.8,2763.3,3.61878]
[1724511986375,2.58077212,2763.8,2763.3,3.61878]
[1724511987105,2.58077212,2763.8,2763.4,3.61864]
[1724511988567,1.26900983,2763.7,2763.3,3.61878]
[1724511988924,2.4965,2763.6,2763.3,7.23756]
[1724511989284,0.08368731,2763.5,2763.3,3.61878]
[1724511989485,0.08368731,2763.5,2763.3,7.23757]
[1724511989803,0.08368731,2763.5,2763.3,7.23755]
[1724511990711,0.08368731,2763.5,2763.3,3.61877]
[1724511991075,0.08368731,2763.5,2763.3,3.61546804]
[1724511992232,0.39670604,2763.5,2763.1,3.61903]
[1724511992407,2.4965,2763.4,2763.1,3.61903]
[1724511992924,0.08362446,2763.3,2763.2,3.61898]
[1724511994069,0.08362446,2763.3,2763.1,7.23807]
[1724511994266,0.08362446,2763.3,2763.1,7.23808]
[1724511994574,2.4965,2763.4,2763.1,7.23808]
[1724511994771,2.4965,2763.4,2763.1,3.61903]
[1724511994997,0.08353853,2763.3,2763.1,3.61903]
[1724511995206,0.08353853,2763.3,2763.1,7.23808]
[1724511995548,0.08353853,2763.3,2763.2,3.61899]
[1724511997989,0.08353853,2763.3,2763.2,7.23798]
[1724512000137,0.08353853,2763.3,2763.2,7.961778]
[1724512000434,2.3276,2763.6,2763.5,3.61859]
[1724512000639,2.41125232,2763.6,2763.5,3.61859]
[1724512004052,2.41125232,2763.6,2763.5,3.60859]
[1724512004400,2.41125232,2763.6,2763.4,3.61865]
[1724512005373,2.41125232,2763.6,2763.4,7.2373]
[1724512005658,2.41125232,2763.6,2763.5,3.61859]
[1724512006565,2.41125232,2763.6,2763.4,3.61863]
[1724512006735,0.08365232,2763.6,2763.5,7.599043]
[1724512007052,2.4419,2764.2,2763.9,3.61799]
[1724512007410,0.08380605,2764.1,2763.9,3.61799]
[1724512010441,0.08380605,2764.1,2763.8,3.61817]
[1724512034696,0.08380605,2764.1,2763.8,3.61817]
[1724512041384,0.46327764,2764.1,2763.7,3.61822]
[1724512041720,2.4523,2763.7,2763.1,3.61904]
[1724512041893,2.4523,2763.4,2763.0,7.45]
[1724512042095,1.26900983,2763.3,2762.9,3.61927]
[1724512042287,2.4523,2763.2,2762.9,3.61927]
[1724512043786,2.4523,2763.2,2762.9,7.23856]
[1724512043984,2.4523,2763.2,2763.0,3.61924]
[1724512046212,0.07824598,2763.1,2763.0,3.61924]
[1724512050948,2.2926,2763.4,2763.1,3.61908]
[1724512051112,2.70376098,2763.4,2763.1,3.61908]
[1724512053147,2.70376098,2763.4,2762.6,4.88873983]
[1724512053148,2.2926,2763.1,2762.2,3.62028]
[1724512053317,1.26900983,2762.6,2761.9,3.62058]
[1724512053537,2.2926,2762.5,2761.9,3.62058]
[1724512053740,2.2926,2762.5,2762.3,3.62009]
[1724512053910,2.2926,2762.5,2762.2,3.62022]
[1724512054271,2.2926,2762.5,2762.3,3.62017]
[1724512054552,0.07754371,2762.4,2762.3,3.62017]
[1724512054747,0.07754371,2762.4,2762.2,3.6202]
[1724512055158,0.07754371,2762.4,2762.2,7.24041]
[1724512055353,0.07754371,2762.4,2762.3,3.62017]
[1724512057235,0.07754371,2762.4,2761.8,3.62072]
[1724512057236,2.2926,2762.3,2761.8,3.62072]
[1724512057437,2.2926,2762.3,2761.9,3.62064]
[1724512057641,0.07724716,2762.2,2762.0,3.62053]
[1724512057951,3.56160983,2762.3,2762.0,3.62053]
[1724512059777,3.56160983,2762.3,2761.8,3.62072]
[1724512061547,0.07695386,2762.2,2761.8,3.62072]
[1724512061743,2.2926,2762.3,2761.8,4.344897]
[1724512062074,2.2926,2762.0,2761.6,3.62105]
[1724512062587,0.07678634,2761.9,2761.6,3.62105]
[1724512069271,0.07678634,2761.9,2755.5,5.57524078]
[1724512069272,2.4816,2761.6,2760.8,15.91212]
[1724512069456,2.4816,2761.6,2761.0,3.62178]
[1724512069457,2.4816,2761.4,2761.0,3.62178]
[1724512069654,0.07579674,2761.5,2761.3,3.62138]
[1724512069860,2.4816,2761.6,2761.3,3.62138]
[1724512070394,2.4816,2761.6,2761.2,3.62161]
[1724512073269,0.07558705,2761.5,2761.2,3.62161]
[1724512074126,0.07558705,2761.5,2761.0,3.62182]
[1724512074127,2.4816,2761.3,2761.0,3.62182]
[1724512074415,2.4816,2761.3,2760.6,3.62229]
[1724512074416,2.4816,2761.0,2760.6,3.62229]
[1724512074648,0.62556641,2761.2,2760.8,3.62202]
[1724512074854,2.4816,2761.3,2761.0,3.62184]
[1724512075699,2.4816,2761.3,2760.8,3.62205]
[1724512075921,2.4816,2761.3,2760.9,3.62198]
[1724512076141,2.4816,2761.3,2760.9,3.622]
[1724512076343,2.4816,2761.3,2760.7,3.62216]
[1724512076551,0.55,2761.2,2760.7,3.62216]
[1724512076901,2.4816,2761.0,2760.7,3.62216]
[1724512077102,2.4816,2761.0,2760.5,3.62243]
[1724512077309,2.4816,2761.0,2760.4,4.89154983]
[1724512077310,0.07526163,2760.9,2760.6,4.89138983]
[1724512077759,0.07526163,2760.9,2760.7,3.62223]
[1724512079215,3.0316,2761.2,2760.7,3.62223]
[1724512079412,0.07523502,2760.8,2760.7,3.62223]
[1724512079641,3.0316,2761.2,2760.7,3.62223]
[1724512079818,0.07523502,2760.8,2760.7,3.62223]
[1724512080014,3.0316,2761.2,2760.9,3.6219]
[1724512080343,2.4816,2761.2,2761.0,3.62182]
[1724512080641,1.26900983,2761.6,2760.9,3.6219]
[1724512080642,0.07508554,2761.1,2760.9,3.6219]
[1724512080835,2.4816,2761.4,2760.9,3.6219]
[1724512081027,0.07483943,2761.0,2760.9,3.6219]
[1724512081227,2.4816,2761.4,2760.9,3.6219]
[1724512081444,0.07483943,2761.0,2760.9,3.6219]
[1724512081744,2.4816,2761.4,2760.9,3.6219]
[1724512081947,0.07433654,2761.0,2760.9,3.6219]
[1724512082442,3.75060983,2761.4,2760.9,3.6219]
[1724512082665,3.75060983,2761.4,2760.3,5.4847]
[1724512082666,2.4816,2760.9,2760.3,5.4847]
[1724512082807,2.4816,2760.9,2760.3,3.75370983]
[1724512083007,2.4816,2760.9,2760.4,3.62257]
[1724512083247,0.07435163,2760.8,2760.4,3.62257]
[1724512084549,0.07435163,2760.8,2760.4,7.24514]
[1724512084763,0.07435163,2760.8,2760.4,8.09655498]
[1724512085220,0.07435163,2760.8,2760.5,3.62251]
[1724512089136,2.4042,2760.7,2760.5,3.62251]
[1724512089562,2.4042,2760.7,2760.2,4.89184983]
[1724512089563,0.07378788,2760.6,2760.4,3.6226]
[1724512091635,0.07378788,2760.6,2760.4,3.62259]
[1724512091841,0.07378788,2760.6,2760.5,3.62253]
[1724512096042,2.4042,2760.5,2760.2,3.62289]
[1724512096465,0.07308552,2760.4,2760.2,3.62289]
[1724512096670,0.07308552,2760.4,2760.2,7.24573]
[1724512096990,0.07308552,2760.4,2760.2,7.24568]
[1724512097545,0.07308552,2760.4,2760.3,3.62279]
[1724512098904,0.07308552,2760.4,2760.1,3.62294]
[1724512099202,2.2665,2760.3,2759.7,0.0532844]
[1724512099353,2.2665,2760.1,2759.7,3.6768544]
[1724512099552,0.07269111,2760.0,2759.7,0.0532844]
[1724512099886,2.8165,2759.9,2759.7,0.0532844]
[1724512100253,0.07263786,2759.8,2759.7,0.0532844]
[1724512100477,0.62263786,2759.8,2759.7,0.0532844]
[1724512100886,1.19076391,2759.8,2759.7,0.0532844]
[1724512104489,0.62263786,2759.8,2759.7,0.0532844]
[1724512105510,2.88913786,2759.8,2759.7,0.0532844]
[1724512106256,11.82086246,2759.8,2759.7,0.0532844]
[1724512108983,8.19741246,2759.8,2759.7,0.0532844]
[1724512112826,11.82086246,2759.8,2759.7,0.0532844]
[1724512113754,8.19741246,2759.8,2759.7,0.0532844]
[1724512114926,11.82086246,2759.8,2759.7,0.0532844]
[1724512115870,8.19741246,2759.8,2759.7,0.0532844]
[1724512121927,11.82086246,2759.8,2759.7,0.0532844]
[1724512123230,8.19741246,2759.8,2759.7,0.0532844]
[1724512123630,11.82086246,2759.8,2759.7,0.0532844]
[1724512123870,8.19741246,2759.8,2759.7,0.0532844]
[1724512124576,11.82086246,2759.8,2759.7,0.0532844]
[1724512125885,8.19741246,2759.8,2759.7,0.0532844]
[1724512126358,11.82086246,2759.8,2759.7,0.0532844]
[1724512128266,6.92840263,2759.8,2759.7,0.0532844]
[1724512128460,11.82086246,2759.8,2759.7,0.0532844]
[1724512128667,8.19741246,2759.8,2759.7,0.0532844]
[1724512128977,11.82086246,2759.8,2759.7,0.0532844]
[1724512132658,5.93091246,2759.8,2759.7,0.0532844]
[1724512133020,9.55436246,2759.8,2759.7,0.0532844]
[1724512133612,5.93091246,2759.8,2759.7,0.0532844]
[1724512135255,5.51509769,2759.8,2759.7,0.0532844]
[1724512137964,9.13854769,2759.8,2759.7,0.0532844]
[1724512139194,11.62584769,2759.8,2759.7,0.0532844]
[1724512149210,15.24929769,2759.8,2759.7,0.0532844]
[1724512149568,11.62584769,2759.8,2759.7,0.0532844]
[1724512149784,13.15077346,2759.8,2759.7,0.0532844]
[1724512150321,0.07263786,2759.8,2759.7,0.0532844]
[1724512150709,3.62338,2759.9,2759.7,0.0532844]
[1724512150906,0.06904176,2759.8,2759.7,0.0532844]
[1724512151697,0.61904176,2759.8,2759.7,0.0532844]
[1724512152438,4.24249176,2759.8,2759.7,0.0532844]
[1724512152984,5.15596592,2759.8,2759.7,0.0532844]
[1724512153282,11.27281592,2759.8,2759.7,0.0532844]
[1724512157302,10.35934176,2759.8,2759.7,0.0532844]
[1724512158647,7.86594176,2759.8,2759.7,0.0532844]
[1724512159407,0.06904176,2759.8,2759.7,0.0532844]
[1724512160846,0.61904176,2759.8,2759.7,0.0532844]
[1724512162437,4.24249176,2759.8,2759.7,0.0532844]
[1724512163045,6.73589176,2759.8,2759.7,0.0532844]
[1724512163244,7.89871492,2759.8,2759.7,0.0532844]
[1724512164120,11.52216492,2759.8,2759.7,0.0532844]
[1724512164537,4.24249176,2759.8,2759.7,0.0532844]
[1724512165145,4.8106956,2759.8,2759.7,0.0532844]
[1724512165872,0.6372456,2759.8,2759.7,0.0532844]
[1724512166021,0.6372456,2759.8,2759.7,10.84705423]
[1724512166228,0.56820384,2759.8,2759.7,10.84705423]
[1724512166427,3.62269,2760.4,2759.8,3.62343]
[1724512166739,0.56809205,2760.1,2759.8,3.62343]
[1724512167569,0.06453153,2760.0,2759.8,3.62343]
[1724512168875,0.06453153,2760.0,2759.9,10.83672983]
[1724512169466,3.87295188,2761.0,2760.4,3.62258]
[1724512169772,3.62174,2761.1,2760.5,2.683358]
[1724512169928,0.06532787,2760.9,2760.5,2.683358]
[1724512170133,0.06535448,2761.0,2760.5,2.683358]
[1724512170371,3.87295188,2761.3,2760.7,3.62226]
[1724512170372,0.06530126,2760.8,2760.7,3.62226]
[1724512170575,0.06539661,2760.9,2760.8,2.3211]
[1724512170936,7.49451188,2761.3,2760.8,2.3211]
[1724512171481,3.87295188,2761.3,2760.8,2.3211]
[1724512171835,7.49408188,2761.6,2760.8,6.96350684]
[1724512172038,7.49408188,2761.6,2761.0,3.62187]
[1724512172275,1.26900983,2761.7,2761.0,3.62179]
[1724512172479,3.62063,2762.0,2761.2,2.3211]
[1724512172636,3.62071,2761.9,2761.2,5.94263]
[1724512173179,0.06588532,2761.8,2761.2,5.94263]
[1724512173536,3.62077,2761.9,2761.2,5.94263]
[1724512173744,0.06585872,2761.7,2761.2,5.94263]
[1724512173950,3.68671532,2761.8,2761.2,5.94263]
[1724512174149,0.06583213,2761.6,2761.2,5.94263]
[1724512174349,0.06585872,2761.7,2761.2,5.94263]
[1724512174673,3.62083,2761.8,2761.2,6.899076]
[1724512174674,0.06583213,2761.6,2761.2,6.899076]
[1724512174889,0.06583213,2761.6,2761.2,6.899046]
[1724512175042,3.62083,2761.8,2761.2,6.899046]
[1724512175238,0.06612327,2761.5,2761.2,10.520556]
[1724512175541,3.62063,2762.0,2761.2,6.899046]
[1724512175761,0.06609667,2761.4,2761.2,6.899046]
[1724512175953,4.17077,2761.9,2761.2,6.899046]
[1724512175954,3.62086,2761.8,2761.2,6.899046]
[1724512176156,0.06607007,2761.3,2761.2,6.899046]
[1724512176355,3.62086,2761.8,2761.2,6.899046]
[1724512176557,0.06613183,2761.3,2761.2,6.899046]
[1724512176755,3.62086,2761.8,2761.2,6.899046]
[1724512176950,0.06613183,2761.3,2761.2,6.899046]
[1724512177155,3.62086,2761.8,2761.2,6.899046]
[1724512177382,0.06613183,2761.3,2761.2,6.899046]
[1724512177601,3.62086,2761.8,2761.2,6.899046]
[1724512177759,0.06613183,2761.3,2761.2,6.899046]
[1724512177964,0.55,2761.9,2761.3,3.62137]
[1724512178276,0.0662648,2761.8,2761.3,3.69379083]
[1724512179172,0.0662648,2761.8,2761.4,3.62132]
[1724512179371,0.0662648,2761.8,2761.5,0.0724159]
[1724512179682,0.06564493,2761.7,2761.5,0.0724159]
[1724512179888,9.64958,2762.2,2761.5,0.0724159]
[1724512180056,0.06561834,2761.6,2761.5,0.44178949]
[1724512180257,0.55,2762.1,2761.5,4.06296949]
[1724512180459,0.06561834,2761.6,2761.5,0.0724159]
[1724512180661,0.06561834,2761.6,2760.9,2.3211]
[1724512180662,3.62118,2761.6,2760.9,2.3211]
[1724512180859,3.6864392,2761.6,2760.9,2.3211]
[1724512181482,0.0652592,2761.6,2761.0,3.62176]
[1724512181644,0.0652592,2761.6,2760.9,2.3211]
[1724512181645,3.62061,2762.0,2761.1,3.62173]
[1724512181848,3.62061,2762.0,2761.3,5.94248]
[1724512182586,6.57924,2762.1,2761.4,3.62133]
[1724512182886,3.62059,2762.0,2761.3,2.3211]
[1724512183059,3.62059,2762.0,2761.3,5.94256]
[1724512183966,3.68333446,2761.9,2761.3,5.94256]
[1724512184150,3.68333446,2761.9,2761.3,6.9352023]
[1724512184490,3.62085,2761.8,2761.3,3.3137423]
[1724512184782,3.68344787,2761.8,2761.3,3.3137423]
[1724512187568,0.06259787,2761.8,2761.3,6.9352023]
[1724512187789,0.06259787,2761.8,2761.4,0.07241813]
[1724512187988,3.62059,2762.0,2761.5,0.70076204]
[1724512188195,0.06179886,2761.7,2761.5,0.70076204]
[1724512188358,3.62059,2762.0,2761.5,0.70076204]
[1724512188557,0.06177226,2761.6,2761.5,0.70076204]
[1724512188900,0.06162852,2761.6,2761.5,0.70076204]
[1724512189197,3.62059,2762.0,2761.5,0.70076204]
[1724512189391,0.06169724,2761.6,2761.5,0.70076204]
[1724512189898,3.62059,2762.0,2761.5,0.70076204]
[1724512190196,0.06169724,2761.6,2761.5,0.70076204]
[1724512190413,3.62059,2762.0,2761.5,0.70076204]
[1724512190766,0.061821,2761.9,2761.5,0.70076204]
[1724512192467,0.061821,2761.9,2761.6,0.4322092]
[1724512192677,3.62036,2762.2,2761.7,2.3622]
[1724512192917,0.06133722,2761.8,2761.7,2.3622]
[1724512193059,3.62036,2762.2,2761.7,2.3622]
[1724512193758,0.06141699,2762.1,2761.7,2.3622]
[1724512194253,3.68185699,2762.1,2761.7,2.3622]
[1724512195201,0.06141699,2762.1,2761.7,3.07382912]
[1724512195508,0.06141699,2762.1,2761.8,3.6208]
[1724512195800,7.49276188,2762.6,2762.0,2.3622]
[1724512196013,7.23969,2762.6,2762.0,2.3622]
[1724512196201,3.61981,2762.6,2762.0,2.3622]
[1724512196410,0.06152152,2762.5,2762.1,0.59828]
[1724512196612,0.06152152,2762.5,2762.1,0.67067921]
[1724512198261,0.06152152,2762.5,2762.1,4.21866]
[1724512198468,4.18732082,2762.7,2762.1,4.21866]
[1724512198667,4.18732082,2762.7,2762.2,0.658086]
[1724512198869,3.61979,2762.6,2762.2,0.658086]
[1724512199370,3.61979,2762.6,2762.1,0.59828]
[1724512200383,7.23966,2762.6,2762.1,0.59828]
[1724512200723,5.96967,2762.3,2761.8,2.3622]
[1724512201475,2.3495,2762.3,2761.8,2.3622]
[1724512201901,5.9697,2762.3,2761.8,2.3622]
[1724512202220,3.6205,2762.1,2761.7,7.45]
[1724512202419,3.6205,2762.1,2761.7,8.96245392]
[1724512203645,5.96978,2762.3,2761.7,8.96245392]
[1724512205230,3.62064,2762.0,2761.4,5.98354]
[1724512205397,2.3495,2761.9,2761.4,3.62134]
[1724512205599,3.62105,2761.7,2761.1,5.98384]
[1724512205815,3.62092,2761.8,2761.1,3.62164]
[1724512206083,4.17098,2761.7,2761.1,4.346]
[1724512206234,0.55,2761.7,2761.1,7.96765]
[1724512206387,0.55,2761.7,2761.1,4.346]
[1724512206739,0.55,2761.7,2761.1,7.96767]
[1724512207026,2.3495,2761.9,2761.4,3.62135]
[1724512207228,2.294,2762.3,2761.8,3.62072]
[1724512207433,3.62007,2762.4,2761.8,7.24147]
[1724512207724,3.62007,2762.4,2761.8,3.62072]
[1724512208599,0.55,2762.3,2761.8,3.62072]
[1724512208815,0.55,2762.3,2761.8,4.588115]
[1724512209795,5.91383,2762.6,2761.8,4.588115]
[1724512210000,0.55,2762.5,2761.8,4.588115]
[1724512210237,2.294,2762.6,2762.0,3.62048]
[1724512210414,2.294,2762.6,2762.0,6.05268]
[1724512210613,2.294,2762.6,2762.1,0.605268]
[1724512211429,5.91378,2762.6,2762.1,0.605268]
[1724512212139,0.56768082,2762.7,2762.3,3.62008]
[1724512212295,0.56768082,2762.7,2762.4,3.61992]
[1724512212500,2.294,2762.9,2762.5,3.61986]
[1724512212936,6.48059456,2763.2,2762.5,3.61986]
[1724512213137,2.86157456,2763.2,2762.6,3.61977]
[1724512213503,6.48059456,2763.2,2762.6,3.61977]
[1724512215714,10.09968456,2763.2,2762.6,3.61977]
[1724512215919,3.61914,2763.1,2762.5,0.723978]
[1724512216350,3.61914,2763.1,2762.5,4.343868]
[1724512217043,6.48059456,2763.2,2762.6,1.0395988]
[1724512217229,6.48059456,2763.2,2762.6,4.6593188]
[1724512218016,10.09970456,2763.2,2762.6,4.6593188]
[1724512218231,6.48059456,2763.2,2762.6,4.6593188]
[1724512219753,10.09968456,2763.2,2762.6,4.6593188]
[1724512219957,10.09968456,2763.2,2762.7,0.46593188]
[1724512220818,3.61912,2763.1,2762.7,0.46593188]
[1724512221646,3.61912,2763.1,2762.6,1.0395988]
[1724512222175,6.48059456,2763.2,2762.6,4.6593388]
[1724512223021,4.18659456,2763.2,2762.6,4.6593388]
[1724512223469,7.80569456,2763.2,2762.6,4.6593388]
[1724512223638,4.18659456,2763.2,2762.6,4.6593388]
[1724512223843,4.18659456,2763.2,2762.7,0.46593388]
[1724512224974,3.6192,2763.1,2762.7,0.46593388]
[1724512225139,3.6192,2763.1,2762.4,6.05212]
[1724512225140,2.294,2763.1,2762.4,6.05212]